bitfinex/quotes_SOLUSD_20250617
["timestamp","ask_amount","ask_price","bid_price","bid_amount"]
[1750190142510,14.00881258,149.79,149.74,21.20881258]
[1750190143022,1.5129,149.82,149.74,21.20881258]
[1750190143023,0.14216157,149.81,149.75,14.00881258]
[1750190143229,14.00881258,149.79,149.75,14.00881258]
[1750190143601,1.5129,149.82,149.75,14.00881258]
[1750190143800,14.00881258,149.8,149.76,14.00881258]
[1750190144027,14.00881258,149.79,149.74,47.20881258]
[1750190144210,14.00881258,149.79,149.75,14.00881258]
[1750190144529,14.00881258,149.79,149.74,33.2]
[1750190144701,14.00881258,149.79,149.75,14.00881258]
[1750190144898,14.00881258,149.79,149.74,33.2]
[1750190145126,14.00881258,149.79,149.74,47.20881258]
[1750190145627,14.00881258,149.78,149.74,47.20881258]
[1750190146040,14.00881258,149.76,149.74,7.2]
[1750190146203,18.64964886,149.8,149.74,7.2]
[1750190146204,14.00881258,149.75,149.74,7.2]
[1750190147524,14.00881258,149.75,149.72,0.3475559]
[1750190147709,14.00881258,149.73,149.72,0.3475559]
[1750190149132,14.00881258,149.74,149.72,0.3475559]
[1750190149312,14.00881258,149.73,149.72,0.3475559]
[1750190150306,18.64964886,149.77,149.72,0.3475559]
[1750190150509,20.68395296,149.81,149.73,26.28432314]
[1750190150825,20.68395296,149.81,149.73,40.00881258]
[1750190150826,14.00881258,149.78,149.73,40.00881258]
[1750190151008,6.67514038,149.81,149.74,14.00881258]
[1750190151009,14.00881258,149.79,149.74,14.00881258]
[1750190151214,14.00881258,149.79,149.75,14.00881258]
[1750190151734,14.00881258,149.78,149.73,40.00881258]
[1750190152036,14.00881258,149.77,149.72,14.35636848]
[1750190152330,14.00881258,149.77,149.72,21.55636848]
[1750190152713,14.00881258,149.77,149.73,14.00881258]
[1750190152923,14.00881258,149.78,149.74,14.00881258]
[1750190153422,14.00881258,149.77,149.72,7.5475559]
[1750190153619,14.00881258,149.77,149.73,14.00881258]
[1750190154836,14.00881258,149.77,149.72,7.5475559]
[1750190155021,14.00881258,149.77,149.73,14.00881258]
[1750190155216,6.6762641,149.79,149.72,21.55636848]
[1750190155524,14.00881258,149.77,149.72,7.5475559]
[1750190155732,14.00881258,149.77,149.72,21.55636848]
[1750190156838,14.00881258,149.76,149.72,7.5475559]
[1750190157222,14.00881258,149.77,149.72,21.55636848]
[1750190157811,14.00881258,149.78,149.73,14.00881258]
[1750190158012,14.00881258,149.79,149.74,14.00881258]
[1750190158614,14.00881258,149.78,149.74,14.00881258]
[1750190159635,14.00881258,149.78,149.73,14.00881258]
[1750190159946,14.00881258,149.77,149.73,14.00881258]
[1750190160346,14.00881258,149.74,149.72,7.5475559]
[1750190160517,14.00881258,149.73,149.72,7.5475559]
[1750190160718,14.00881258,149.73,149.61,10.0]
[1750190160719,28.0358,149.68,149.48,67.22536775]
[1750190160938,59.39937592,149.69,149.48,59.36475695]
[1750190160939,28.15978673,149.49,149.48,59.36475695]
[1750190161162,26.0,149.46,149.36,14.00881258]
[1750190161455,14.00881258,149.43,149.36,2.89627658]
[1750190161625,14.00881258,149.43,149.34,5.06485247]
[1750190161626,14.00881258,149.43,149.37,14.00881258]
[1750190161831,14.00881258,149.43,149.36,14.00881258]
[1750190162031,14.15097415,149.43,149.34,5.06485247]
[1750190162248,19.13515234,149.43,149.37,26.0]
[1750190162565,19.13515234,149.43,149.26,3.4898709]
[1750190162566,26.0,149.38,149.26,3.4898709]
[1750190162768,6.47846157,149.41,149.12,17.50330794]
[1750190162769,18.64964886,149.21,149.12,1.3790023]
[1750190163066,0.14216157,149.17,149.12,1.3790023]
[1750190163215,40.11,149.2,149.12,1.3790023]
[1750190163416,19.07613357,149.19,149.12,21.85922677]
[1750190163655,0.28432314,149.16,149.12,1.3790023]
[1750190163856,0.14216157,149.19,149.13,7.88]
[1750190164019,20.48022447,149.25,149.13,7.88]
[1750190164216,26.0,149.31,149.2,20.48022447]
[1750190164417,10.0,149.34,149.14,0.14216157]
[1750190164616,10.0,149.34,149.12,1.3790023]
[1750190164617,26.0,149.26,149.12,1.3790023]
[1750190164912,26.0,149.26,149.13,7.9]
[1750190164913,0.14216157,149.24,149.13,7.9]
[1750190165117,26.0,149.26,149.16,26.0]
[1750190165415,26.0,149.26,149.2,20.48022447]
[1750190165636,26.0,149.26,149.15,0.14216157]
[1750190165637,46.48022447,149.26,149.15,0.14216157]
[1750190165923,20.48022447,149.34,149.23,26.0]
[1750190166135,4.86911109,149.38,149.3,20.48022447]
[1750190166331,4.86911109,149.38,149.24,7.9]
[1750190166332,20.48022447,149.35,149.24,7.9]
[1750190166538,20.48022447,149.34,149.29,20.48022447]
[1750190166745,26.0,149.36,149.29,20.48022447]
[1750190167035,20.48022447,149.34,149.29,20.48022447]
[1750190167618,20.48022447,149.35,149.3,20.48022447]
[1750190167939,18.64964886,149.36,149.29,20.48022447]
[1750190167940,20.48022447,149.34,149.29,20.48022447]
[1750190168439,26.0,149.36,149.27,26.0]
[1750190168626,18.64964886,149.39,149.35,20.48022447]
[1750190168948,18.64964886,149.39,149.34,20.48022447]
[1750190168949,0.14216157,149.38,149.34,20.48022447]
[1750190169133,20.48022447,149.38,149.28,18.79181043]
[1750190169444,20.48022447,149.38,149.34,20.48022447]
[1750190169623,20.48022447,149.38,149.33,20.48022447]
[1750190169830,10.0,149.44,149.26,6.69933875]
[1750190169831,20.48022447,149.36,149.26,6.69933875]
[1750190170145,20.48022447,149.36,149.1,531.73308542]
[1750190170146,28.64964886,149.11,149.1,5.11218754]
[1750190170318,10.0,149.06,148.83,11.2390023]
[1750190170520,26.0,148.99,148.83,11.2390023]
[1750190170747,0.14216157,148.98,148.83,11.2390023]
[1750190170945,21.03534904,148.98,148.83,11.2390023]
[1750190171150,26.0,148.99,148.92,20.89318747]
[1750190171358,18.79181043,149.05,148.93,10.04]
[1750190171556,19.07613357,149.01,148.93,10.04]
[1750190171726,19.07613357,149.01,148.86,15.15952261]
[1750190171727,10.04,148.89,148.86,1.81010565]
[1750190171930,59.07613357,148.87,148.86,1.81010565]
[1750190172135,79.96932104,148.87,148.86,1.81010565]
[1750190172427,59.07613357,148.87,148.86,1.81010565]
[1750190172733,6.70960815,149.04,148.86,12.47010565]
[1750190173052,20.89318747,148.98,148.86,12.47010565]
[1750190173260,6.70960815,149.04,148.86,1.81010565]
[1750190173261,26.0,148.95,148.86,1.81010565]
[1750190173667,6.70960815,149.04,148.94,20.89318747]
[1750190173840,6.70960815,149.04,148.91,26.0]
[1750190174173,6.70960815,149.04,148.91,20.89318747]
[1750190174174,20.89318747,148.98,148.91,20.89318747]
[1750190174480,20.89318747,148.96,148.89,36.66]
[1750190174836,20.89318747,148.96,148.89,57.55318747]
[1750190175068,20.89318747,148.96,148.89,36.66]
[1750190175378,20.89318747,148.96,148.9,20.89318747]
[1750190175552,26.0,149.0,148.92,20.89318747]
[1750190175754,20.89318747,148.98,148.92,20.89318747]
[1750190175976,26.0,149.0,148.92,20.89318747]
[1750190176165,20.89318747,148.99,148.93,20.89318747]
[1750190176473,20.89318747,148.98,148.92,20.89318747]
[1750190176640,26.0,149.0,148.92,20.89318747]
[1750190176839,20.89318747,148.98,148.89,36.66]
[1750190177065,20.89318747,148.98,148.92,20.89318747]
[1750190177239,20.89318747,148.97,148.92,20.89318747]
[1750190177439,20.89318747,148.96,148.91,20.89318747]
[1750190177643,20.89318747,148.96,148.9,20.89318747]
[1750190178382,26.0,148.99,148.92,20.89318747]
[1750190178552,6.71037214,149.03,148.92,20.89318747]
[1750190178553,20.89318747,148.98,148.92,20.89318747]
[1750190178748,20.89318747,148.97,148.92,20.89318747]
[1750190178943,20.89318747,148.97,148.91,20.89318747]
[1750190179250,20.89318747,148.96,148.9,20.89318747]
[1750190179563,20.89318747,148.96,148.91,20.89318747]
[1750190180167,20.89318747,148.93,148.87,20.89318747]
[1750190180360,20.89318747,148.93,148.86,1.81010565]
[1750190180361,20.89318747,148.93,148.88,20.89318747]
[1750190180561,26.0,148.99,148.88,20.89318747]
[1750190180866,20.89318747,148.93,148.86,12.49010565]
[1750190181036,20.89318747,148.93,148.88,20.89318747]
[1750190181441,20.89318747,148.93,148.86,38.49010565]
[1750190181654,20.89318747,148.95,148.91,20.89318747]
[1750190181845,20.89318747,148.96,148.91,20.89318747]
[1750190182055,20.89318747,148.97,148.92,20.89318747]
[1750190182254,20.89318747,148.96,148.91,20.89318747]
[1750190182465,26.0,148.99,148.92,20.89318747]
[1750190182753,46.89318747,148.97,148.92,20.89318747]
[1750190182972,10.0,149.05,148.96,20.89318747]
[1750190183147,18.64964886,149.01,148.97,20.89318747]
[1750190183347,20.89318747,149.02,148.97,20.89318747]
[1750190183574,46.89318747,149.01,148.91,18.933972]
[1750190183975,20.89318747,149.01,148.96,20.89318747]
[1750190184250,20.89318747,148.98,148.91,6.71545604]
[1750190184462,0.14216157,148.99,148.92,20.89318747]
[1750190184463,20.89318747,148.97,148.92,20.89318747]
[1750190184669,20.89318747,148.97,148.93,20.89318747]
[1750190184852,46.89318747,149.01,148.96,20.89318747]
[1750190185050,26.0,149.01,148.97,20.89318747]
[1750190185250,46.89318747,149.01,148.96,20.89318747]
[1750190185547,26.0,149.01,148.99,20.89318747]
[1750190186249,26.0,149.01,148.98,20.89318747]
[1750190186471,26.0,149.01,148.97,20.89318747]
[1750190186766,46.89318747,149.01,148.96,20.89318747]
[1750190187141,46.89318747,149.01,148.97,20.89318747]
[1750190187456,46.89318747,149.01,148.94,6.71409467]
[1750190187656,26.0,149.01,148.97,20.89318747]
[1750190188770,26.0,149.01,148.98,20.89318747]
[1750190188973,18.64964886,149.07,149.0,20.89318747]
[1750190189176,18.64964886,149.07,148.94,26.0]
[1750190189177,20.89318747,149.05,149.01,20.89318747]
[1750190189547,20.89318747,149.02,148.96,20.89318747]
[1750190189764,26.0,149.06,148.93,6.71456388]
[1750190189765,20.89318747,149.0,148.95,20.89318747]
[1750190190168,20.89318747,149.0,148.96,20.89318747]
[1750190190474,20.89318747,149.0,148.95,20.89318747]
[1750190190866,20.51290509,149.0,148.95,20.51290509]
[1750190191179,20.51290509,149.01,148.96,20.51290509]
[1750190191350,20.51290509,149.0,148.95,20.51290509]
[1750190191972,20.51290509,149.01,148.96,20.51290509]
[1750190192166,20.51290509,149.03,148.98,20.51290509]
[1750190193270,46.51290509,149.04,148.99,20.51290509]
[1750190193573,26.0,149.04,149.0,20.51290509]
[1750190194270,46.51290509,149.04,149.0,20.51290509]
[1750190194651,46.51290509,149.04,148.99,20.51290509]
[1750190195154,46.51290509,149.04,148.96,6.7131059]
[1750190195475,20.51290509,149.03,148.99,20.51290509]
[1750190195649,26.0,149.04,148.99,20.51290509]
[1750190195852,20.51290509,149.03,148.99,20.51290509]
[1750190196454,26.0,149.04,149.0,20.51290509]
[1750190196654,46.51290509,149.04,148.99,20.51290509]
[1750190197457,53.22259725,149.04,148.99,20.51290509]
[1750190197656,20.51290509,149.03,148.99,20.51290509]
[1750190198482,26.0,149.04,148.93,32.71420022]
[1750190198483,20.51290509,149.0,148.93,32.71420022]
[1750190198660,20.51290509,148.99,148.94,20.51290509]
[1750190199279,20.51290509,148.98,148.92,43.39488061]
[1750190199463,20.51290509,148.93,148.88,20.51290509]
[1750190199782,20.51290509,148.93,148.89,20.51290509]
[1750190199985,26.0,148.99,148.92,20.51290509]
[1750190200155,26.0,148.99,148.94,20.51290509]
[1750190200357,32.85307169,149.02,148.91,0.14216157]
[1750190200576,20.51290509,148.99,148.95,20.51290509]
[1750190200985,26.0,148.99,148.91,10.3]
[1750190201185,0.14216157,148.98,148.91,10.3]
[1750190201360,20.51290509,148.95,148.91,10.3]
[1750190201754,20.51290509,148.94,148.91,10.3]
[1750190202480,20.51290509,148.93,148.87,6.1262]
[1750190202761,20.51290509,148.93,148.88,20.51290509]
[1750190203189,20.51290509,148.94,148.89,20.51290509]
[1750190203790,26.0,148.99,148.92,20.51290509]
[1750190203951,20.51290509,148.97,148.92,20.51290509]
[1750190204155,20.51290509,148.97,148.87,23.14341413]
[1750190204671,22.9643908,148.96,148.91,20.51290509]
[1750190204861,2.45148571,148.95,148.91,20.51290509]
[1750190205064,2.45148571,148.94,148.91,20.51290509]
[1750190205387,20.51290509,148.96,148.91,20.51290509]
[1750190205580,2.45152681,148.95,148.91,20.51290509]
[1750190205891,2.45152681,148.94,148.91,20.51290509]
[1750190206087,32.71197218,148.99,148.92,20.51290509]
[1750190206262,20.51290509,148.97,148.93,20.51290509]
[1750190206457,20.51290509,148.97,148.89,0.28432314]
[1750190206458,2.45303831,148.96,148.89,0.28432314]
[1750190206659,2.45303831,148.95,148.9,6.71591672]
[1750190206914,2.45303831,148.94,148.9,16.61591672]
[1750190207203,4.91189767,148.98,148.9,9.9]
[1750190207490,27.91745954,148.97,148.93,20.51290509]
[1750190207782,2.45304183,148.96,148.94,20.51290509]
[1750190207986,2.45304183,148.95,148.9,9.9]
[1750190208171,26.0,148.99,148.9,9.9]
[1750190208172,2.45304183,148.94,148.91,20.51290509]
[1750190208371,2.45304183,148.93,148.92,20.51290509]
[1750190209684,2.45304183,148.93,148.91,6.71542146]
[1750190209987,2.45304183,148.93,148.92,20.51290509]
[1750190210289,25.42784037,148.97,148.92,20.51290509]
[1750190210594,4.91493528,148.98,148.94,20.51290509]
[1750190210805,25.35925701,149.04,148.97,20.51290509]
[1750190211003,4.92548198,149.03,148.97,20.51290509]
[1750190211211,25.43838707,149.02,148.98,20.51290509]
[1750190211387,4.92548198,149.01,148.98,20.51290509]
[1750190211708,4.92548198,149.0,148.97,20.51290509]
[1750190211887,4.92548198,148.99,148.97,20.51290509]
[1750190212074,20.51290509,149.01,148.94,0.28432314]
[1750190212411,4.93544223,149.0,148.97,20.51290509]
[1750190212615,4.93544223,148.99,148.97,20.51290509]
[1750190212896,4.93544223,148.98,148.97,20.51290509]
[1750190213397,4.93544223,148.98,148.95,20.51290509]
[1750190213589,4.93544223,148.97,148.95,20.51290509]
[1750190213800,4.93544223,148.96,148.95,20.51290509]
[1750190214460,4.93544223,148.96,148.92,0.28432314]
[1750190214461,10.76645681,148.96,148.93,20.51290509]
[1750190214589,4.93544223,148.95,148.9,42.61582599]
[1750190214905,4.93544223,148.94,148.93,20.51290509]
[1750190215401,11.19875984,148.94,148.93,7.91918945]
[1750190215807,4.93544223,148.94,148.93,7.91918945]
[1750190216106,2.50634601,148.94,148.93,8.20351259]
[1750190216906,2.50634601,148.94,148.93,6.99888702]
[1750190217071,20.51290509,149.0,148.93,27.51179211]
[1750190217275,20.51290509,149.0,148.95,20.51290509]
[1750190217714,20.51290509,149.0,148.96,20.51290509]
[1750190217883,20.51290509,149.0,148.95,20.51290509]
[1750190218080,20.51290509,149.0,148.96,20.51290509]
[1750190218295,20.51290509,148.98,148.94,20.51290509]
[1750190218502,4.95373094,148.95,148.91,0.28432314]
[1750190218714,20.51290509,148.98,148.91,0.28432314]
[1750190218715,20.51290509,148.98,148.94,20.51290509]
[1750190218913,5.01475876,148.97,148.95,20.51290509]
[1750190219095,20.51290509,149.0,148.96,22.99236748]
[1750190219290,5.01426677,148.99,148.97,2.47946239]
[1750190219494,20.51290509,149.0,148.98,2.47946239]
[1750190219740,20.51290509,149.0,148.99,2.47946239]
[1750190220233,6.26331761,149.06,148.99,22.99236748]
[1750190220534,20.51290509,149.08,149.04,20.51290509]
[1750190220694,12.9693529,149.12,149.06,20.51290509]
[1750190220895,20.51290509,149.11,149.07,22.99236748]
[1750190221210,0.8618,149.13,149.08,2.47946239]
[1750190221415,0.8618,149.13,149.09,22.99236748]
[1750190221611,21.37470509,149.13,149.1,2.47946239]
[1750190221815,21.37470509,149.13,149.11,2.47946239]
[1750190222017,21.37470509,149.13,149.09,20.51290509]
[1750190222018,0.8618,149.13,149.12,2.47946239]
[1750190222928,0.8618,149.13,149.12,22.99236748]
[1750190223133,0.8618,149.13,149.11,20.51290509]
[1750190223432,0.8618,149.13,149.09,9.52]
[1750190223611,0.8618,149.13,149.12,20.51290509]
[1750190223801,21.37470509,149.13,149.09,9.52]
[1750190223999,20.51290509,149.1,149.09,9.52]
[1750190224203,7.56740848,149.13,149.09,9.52]
[1750190224204,0.8618,149.13,149.09,9.52]
[1750190224421,20.51290509,149.12,149.09,9.52]
[1750190224815,7.56742029,149.13,149.09,9.52]
[1750190225014,20.51290509,149.12,149.09,9.52]
[1750190225242,0.8618,149.13,149.09,30.03290509]
[1750190225536,20.51290509,149.12,149.09,9.52]
[1750190225764,0.8618,149.13,149.09,9.52]
[1750190226156,0.8618,149.13,149.1,20.51290509]
[1750190226461,0.8618,149.13,149.07,6.99243422]
[1750190226462,23.00698014,149.12,149.08,9.52]
[1750190226660,2.49407505,149.11,149.08,30.03290509]
[1750190226842,21.37470509,149.13,149.09,20.51290509]
[1750190227164,21.37470509,149.13,149.08,9.52]
[1750190227165,2.49475678,149.12,149.08,30.03290509]
[1750190227341,2.49475678,149.11,149.08,30.03290509]
[1750190227662,21.37470509,149.13,149.09,20.51290509]
[1750190227824,2.49473554,149.12,149.09,20.51290509]
[1750190228022,0.8618,149.13,149.09,20.51290509]
[1750190228846,21.37470509,149.13,149.09,20.51290509]
[1750190229052,20.51290509,149.11,149.08,9.52]
[1750190229751,0.8618,149.13,149.08,30.03290509]
[1750190229933,0.8618,149.13,149.09,20.51290509]
[1750190230133,20.51290509,149.12,149.08,9.52]
[1750190230353,20.51290509,149.11,149.08,9.52]
[1750190230666,20.51290509,149.09,149.03,0.14216157]
[1750190230844,20.51290509,149.09,149.04,20.51290509]
[1750190231044,6.70645831,149.11,149.04,20.51290509]
[1750190231248,20.51290509,149.08,149.03,30.03290509]
[1750190231436,20.51290509,149.09,149.05,20.51290509]
[1750190231951,20.51290509,149.09,149.03,9.52]
[1750190232155,20.51290509,149.08,149.04,20.51290509]
[1750190232467,20.51290509,149.07,149.03,30.03290509]
[1750190232666,20.51290509,149.06,149.03,9.52]
[1750190232874,20.51290509,149.07,149.03,9.52]
[1750190233168,20.51290509,149.05,149.03,9.52]
[1750190233535,20.51290509,149.06,149.03,9.52]
[1750190235154,20.51290509,149.05,149.03,9.52]
[1750190236065,46.51290509,149.07,149.03,9.52]
[1750190236375,20.51290509,149.06,149.03,9.52]
[1750190237568,27.2216376,149.06,149.03,9.52]
[1750190238075,20.51290509,149.06,149.03,9.52]
[1750190238367,27.22161639,149.06,149.03,9.52]
[1750190238570,6.7087113,149.06,149.03,9.52]
[1750190238878,26.0,149.07,149.03,9.52]
[1750190238879,20.51290509,149.07,149.03,9.52]
[1750190239048,27.22122112,149.07,149.03,9.52]
[1750190239248,53.22122112,149.07,149.03,9.52]
[1750190240469,20.51290509,149.06,149.03,9.52]
[1750190241056,20.51290509,149.05,149.03,9.52]
[1750190241256,20.51290509,149.04,149.03,9.52]
[1750190241847,20.51290509,149.04,148.97,20.51290509]
[1750190242169,20.51290509,149.01,148.96,29.63290509]
[1750190242978,14.19985297,149.01,148.97,14.19985297]
[1750190243191,20.91130932,149.0,148.96,9.12]
[1750190243482,6.71145635,149.0,148.96,9.12]
[1750190243780,6.71145635,149.0,148.95,14.19985297]
[1750190243962,14.19985297,148.99,148.93,9.40432314]
[1750190244271,6.71145635,149.0,148.93,9.40432314]
[1750190244272,14.19985297,148.98,148.94,14.19985297]
[1750190244540,14.19985297,148.96,148.93,9.12]
[1750190244776,6.71145635,149.0,148.93,9.12]
[1750190244777,14.19985297,148.95,148.93,9.12]
[1750190244978,6.71145635,149.0,148.93,9.12]
[1750190245150,6.71145635,149.0,148.95,20.52620789]
[1750190245350,20.52620789,148.99,148.95,20.52620789]
[1750190245756,20.52620789,148.99,148.94,20.52620789]
[1750190245974,20.52620789,149.0,148.96,20.52620789]
[1750190246155,26.0,149.01,148.96,20.52620789]
[1750190246483,20.52620789,149.01,148.96,20.52620789]
[1750190246691,6.70972938,149.04,148.95,20.52620789]
[1750190246692,20.52620789,149.0,148.95,20.52620789]
[1750190246844,20.52620789,149.0,148.96,20.52620789]
[1750190247242,49.62591134,149.04,148.96,20.52620789]
[1750190247243,20.52620789,149.01,148.96,20.52620789]
[1750190248573,20.52620789,149.0,148.96,20.52620789]
[1750190248779,20.52620789,149.0,148.95,20.52620789]
[1750190249274,20.52620789,149.0,148.93,15.8344888]
[1750190249478,20.52620789,149.0,148.95,20.52620789]
[1750190249776,27.23761915,149.0,148.95,20.52620789]
[1750190249970,27.23761915,149.0,148.93,9.12]
[1750190250280,27.23761915,149.0,148.89,6.0657]
[1750190250281,20.52620789,148.98,148.89,6.0657]
[1750190250484,32.71141126,149.0,148.87,18.79181043]
[1750190250485,26.0,148.97,148.87,18.79181043]
[1750190250779,20.52620789,148.89,148.86,1.81010565]
[1750190250967,26.0,148.94,148.86,1.81010565]
[1750190250968,26.0,148.93,148.86,1.81010565]
[1750190251299,20.52620789,148.87,148.86,1.81010565]
[1750190252568,39.31801832,148.87,148.86,1.81010565]
[1750190252772,46.03528842,148.87,148.86,1.81010565]
[1750190253269,46.31961156,148.87,148.86,1.81010565]
[1750190253599,46.03528842,148.87,148.86,1.81010565]
[1750190253813,57.71340367,148.87,148.86,0.14350565]
[1750190254094,78.23961156,148.87,148.86,0.14350565]
[1750190254401,77.95528842,148.87,148.86,0.14350565]
[1750190254870,57.42908053,148.87,148.86,0.14350565]
[1750190255071,46.03528842,148.87,148.86,0.14350565]
[1750190255398,27.24347799,148.87,148.86,0.14350565]
[1750190255774,46.52620789,148.87,148.86,0.14350565]
[1750190257260,53.24347799,148.87,148.86,0.14350565]
[1750190257492,32.7172701,148.87,148.86,0.14350565]
[1750190257662,46.52620789,148.87,148.86,0.14350565]
[1750190257982,20.52620789,148.87,148.86,0.14350565]
[1750190258285,20.52620789,148.88,148.86,0.14350565]
[1750190258481,29.10204689,148.89,148.86,0.14350565]
[1750190258683,8.575839,148.89,148.86,20.66971354]
[1750190258985,8.575839,148.89,148.87,20.52620789]
[1750190259287,8.575839,148.89,148.86,0.14350565]
[1750190259288,8.575839,148.89,148.86,20.66971354]
[1750190259613,8.575839,148.89,148.88,20.52620789]
[1750190259992,8.575839,148.89,148.86,6.86113934]
[1750190260190,8.575839,148.89,148.88,20.52620789]
[1750190265014,20.52620789,148.91,148.87,8.74]
[1750190266013,20.52620789,148.91,148.87,29.26620789]
[1750190266217,20.52620789,148.9,148.87,8.74]
[1750190266421,20.52620789,148.91,148.87,8.74]
[1750190266717,16.7813091,148.98,148.87,29.26620789]
[1750190267018,20.52620789,148.91,148.87,8.74]
[1750190267238,20.52620789,148.9,148.87,8.74]
[1750190267447,20.52620789,148.91,148.87,8.74]
[1750190267611,20.52620789,148.89,148.87,8.74]
[1750190268534,18.6,148.88,148.87,8.74]
[1750190268732,20.52620789,148.9,148.87,8.74]
[1750190269233,6.71516945,148.92,148.87,8.74]
[1750190269431,20.52620789,148.91,148.87,8.74]
[1750190269907,26.0,148.93,148.87,29.26620789]
[1750190270113,20.52620789,148.93,148.89,20.52620789]
[1750190270317,20.52620789,148.93,148.88,20.52620789]
[1750190270873,26.0,148.94,148.89,14.21395461]
[1750190271015,14.21395461,148.93,148.89,14.21395461]
[1750190271213,14.21395461,148.96,148.91,14.21395461]
[1750190271729,6.71243654,148.98,148.92,14.21395461]
[1750190271915,14.21395461,148.96,148.92,14.21395461]
[1750190272311,14.21395461,148.96,148.91,14.21395461]
[1750190273330,14.21395461,148.96,148.9,6.71563117]
[1750190273512,14.21395461,148.96,148.91,14.21395461]
[1750190273713,14.21395461,148.96,148.92,14.21395461]
[1750190273919,6.71281606,148.97,148.91,14.21395461]
[1750190274120,10.2,148.95,148.92,14.21395461]
[1750190274336,10.2,148.95,148.94,14.21395461]
[1750190274654,14.21395461,148.99,148.94,14.21395461]
[1750190275157,14.21395461,148.99,148.95,14.21395461]
[1750190275542,14.21395461,149.0,148.95,14.21395461]
[1750190276561,14.21395461,148.99,148.95,14.21395461]
[1750190277062,14.21395461,148.99,148.94,6.71393487]
[1750190277230,14.21395461,148.99,148.95,14.21395461]
[1750190277435,14.21395461,148.99,148.93,6.71439751]
[1750190277737,14.21395461,148.99,148.94,14.21395461]
[1750190278465,14.21395461,148.99,148.92,14.21395461]
[1750190278466,14.21395461,148.96,148.92,14.21395461]
[1750190278841,14.21395461,148.98,148.93,14.21395461]
[1750190279280,14.21395461,148.97,148.93,14.21395461]
[1750190279635,14.21395461,148.98,148.93,14.21395461]
[1750190279841,14.21395461,148.98,148.94,14.21395461]
[1750190280162,9.16736296,149.01,148.91,6.71529847]
[1750190280163,9.16736296,149.01,148.97,14.21395461]
[1750190280368,14.21395461,148.98,148.9,34.0534]
[1750190280537,14.21395461,148.94,148.86,0.14350565]
[1750190280747,14.21395461,148.94,148.89,14.21395461]
[1750190281066,14.21395461,148.93,148.88,20.93048947]
[1750190281234,14.21395461,148.92,148.88,6.71653486]
[1750190281436,26.0,148.98,148.89,14.21395461]
[1750190281437,18.79181043,148.97,148.89,14.21395461]
[1750190281639,14.21395461,148.93,148.88,20.93048947]
[1750190281839,14.21395461,148.92,148.88,20.93048947]
[1750190282270,14.21395461,148.93,148.88,20.93048947]
[1750190282571,14.21395461,148.93,148.88,14.21395461]
[1750190282768,14.21395461,148.91,148.87,8.74]
[1750190282952,14.21395461,148.9,148.87,8.74]
[1750190283552,63.71180621,148.95,148.86,0.14350565]
[1750190283553,26.0,148.91,148.86,0.14350565]
[1750190283755,14.21395461,148.87,148.86,0.14350565]
[1750190283957,14.21395461,148.88,148.86,0.14350565]
[1750190284268,6.71591672,148.9,148.86,0.14350565]
[1750190284482,14.21395461,148.87,148.86,0.14350565]
[1750190285181,14.21395461,148.88,148.86,0.14350565]
[1750190285381,8.98725806,148.94,148.87,14.21395461]
[1750190285557,14.21395461,148.91,148.87,14.21395461]
[1750190285745,18.6,148.88,148.87,14.21395461]
[1750190285947,18.6,148.88,148.86,0.14350565]
[1750190286263,14.21395461,148.88,148.86,0.14350565]
[1750190286948,14.21395461,148.87,148.86,0.14350565]
[1750190287484,40.21395461,148.87,148.86,0.14350565]
[1750190288250,26.0,148.84,148.83,1.3790023]
[1750190288570,46.93257863,148.84,148.83,1.3790023]
[1750190288876,14.21395461,148.84,148.83,0.8790023]
[1750190289443,14.21395461,148.85,148.83,0.8790023]
[1750190289702,26.0,148.86,148.83,0.8790023]
[1750190289993,14.21395461,148.84,148.83,0.8790023]
[1750190290207,33.00576504,148.84,148.83,0.8790023]
[1750190290369,25.51043445,148.84,148.83,0.8790023]
[1750190290700,20.93257863,148.84,148.83,0.8790023]
[1750190290866,18.6,148.84,148.83,0.8790023]
[1750190291197,39.53257863,148.84,148.83,0.8790023]
[1750190291386,51.31862402,148.84,148.83,0.8790023]
[1750190291778,65.53257863,148.84,148.83,0.8790023]
[1750190292779,84.32438906,148.84,148.83,0.8790023]
[1750190293498,58.32438906,148.84,148.83,0.8790023]
[1750190294890,89.26438906,148.84,148.83,0.8790023]
[1750190295279,89.5487122,148.84,148.83,0.8790023]
[1750190295586,89.5487122,148.84,148.73,14.21395461]
[1750190295587,26.0,148.81,148.73,14.21395461]
[1750190295780,56.92,148.81,148.74,14.21395461]
[1750190295981,26.0,148.81,148.77,14.21395461]
[1750190296198,14.21395461,148.8,148.73,0.28432314]